[Event "British Rapidplay Championship 2023"]
[Site "Mercure Bradford, Bankfield Hotel"]
[Date "2023.04.15"]
[Round "3.9"]
[White "Lau, Luke"]
[Black "Walker, David J"]
[Result "1/2-1/2"]
[TimeControl "15 minutes plus 10 seconds per move"]
[WhiteElo "1917"]
[BlackElo "2250"]

1. e4 {[%clk 00:15:16]} {[%emt 00:00:04]} e5 {[%clk 00:15:19]} {[%emt
00:00:02]} 2. Nf3 {[%clk 00:15:24]} {[%emt 00:00:01]} Nc6 {[%clk 00:15:27]}
{[%emt 00:00:02]} 3. d4 {[%clk 00:15:33]} {[%emt 00:00:01]} exd4 {[%clk
00:15:35]} {[%emt 00:00:02]} 4. Nxd4 {[%clk 00:15:42]} {[%emt 00:00:01]} Bc5
{[%clk 00:15:42]} {[%emt 00:00:03]} 5. Nb3 {[%clk 00:15:51]} Bb6 {[%clk
00:15:50]} {[%emt 00:00:02]} 6. Nc3 {[%clk 00:16:00]} {[%emt 00:00:02]} Qf6
{[%clk 00:14:13]} {[%emt 00:01:46]} 7. Qe2 {[%clk 00:15:36]} {[%emt 00:00:34]}
Nge7 {[%clk 00:13:54]} {[%emt 00:00:29]} 8. Be3 {[%clk 00:15:21]} {[%emt
00:00:25]} O-O {[%clk 00:13:53]} {[%emt 00:00:12]} 9. O-O-O {[%clk 00:15:22]}
{[%emt 00:00:08]} Ng6 {[%clk 00:11:52]} {[%emt 00:02:12]} 10. Nd5 {[%clk
00:13:23]} {[%emt 00:02:09]} Qd8 {[%clk 00:11:57]} {[%emt 00:00:05]} 11. Nxb6
{[%clk 00:12:48]} {[%emt 00:00:44]} axb6 {[%clk 00:12:05]} {[%emt 00:00:03]} 12.
Kb1 {[%clk 00:12:54]} {[%emt 00:00:03]} d6 {[%clk 00:12:10]} {[%emt 00:00:05]}
13. f3 {[%clk 00:10:45]} {[%emt 00:02:19]} Be6 {[%clk 00:12:04]} {[%emt
00:00:16]} 14. Qd2 {[%clk 00:10:12]} {[%emt 00:00:43]} Nge5 {[%clk 00:11:22]}
{[%emt 00:00:53]} 15. Qc3 {[%clk 00:09:44]} {[%emt 00:00:37]} f5 {[%clk
00:10:14]} {[%emt 00:01:18]} 16. exf5 {[%clk 00:09:16]} {[%emt 00:00:38]} Rxf5
{[%clk 00:10:16]} {[%emt 00:00:07]} 17. a3 {[%clk 00:08:31]} {[%emt 00:00:56]}
Qd7 {[%clk 00:07:21]} {[%emt 00:03:06]} 18. Nd4 {[%clk 00:06:58]} {[%emt
00:01:43]} Nxd4 {[%clk 00:07:28]} {[%emt 00:00:02]} 19. Bxd4 {[%clk 00:07:06]}
{[%emt 00:00:01]} Qf7 {[%clk 00:06:22]} {[%emt 00:01:17]} 20. Re1 {[%clk
00:04:50]} {[%emt 00:02:26]} Re8 {[%clk 00:06:09]} {[%emt 00:00:23]} 21. Bxe5
{[%clk 00:04:00]} {[%emt 00:01:00]} Rxe5 {[%clk 00:05:48]} {[%emt 00:00:32]} 22.
Rxe5 {[%clk 00:04:04]} {[%emt 00:00:05]} dxe5 {[%clk 00:05:53]} {[%emt
00:00:05]} 23. Bd3 {[%clk 00:04:08]} {[%emt 00:00:05]} Ba2+ {[%clk 00:04:44]}
{[%emt 00:01:21]} 24. Ka1 {[%clk 00:03:55]} {[%emt 00:00:23]} Bd5 {[%clk
00:04:52]} {[%emt 00:00:02]} 25. Re1 {[%clk 00:03:49]} {[%emt 00:00:15]} Qe7
{[%clk 00:04:38]} {[%emt 00:00:25]} 26. Be4 {[%clk 00:03:13]} {[%emt 00:00:46]}
Bxe4 {[%clk 00:03:12]} {[%emt 00:01:36]} 27. Rxe4 {[%clk 00:03:21]} {[%emt
00:00:02]} Qd6 {[%clk 00:03:15]} {[%emt 00:00:07]} 28. Qc4+ {[%clk 00:03:03]}
{[%emt 00:00:27]} Kf8 {[%clk 00:02:43]} {[%emt 00:00:42]} 29. Qe2 {[%clk
00:01:59]} {[%emt 00:01:14]} Re7 {[%clk 00:02:41]} {[%emt 00:00:13]} 30. Re3
{[%clk 00:01:52]} {[%emt 00:00:16]} g6 {[%clk 00:02:23]} {[%emt 00:00:28]} 31.
Rd3 {[%clk 00:01:51]} {[%emt 00:00:11]} Qf6 {[%clk 00:02:26]} {[%emt 00:00:08]}
32. Qe4 {[%clk 00:01:56]} {[%emt 00:00:04]} c6 {[%clk 00:02:06]} {[%emt
00:00:30]} 33. Qe3 {[%clk 00:01:28]} {[%emt 00:00:38]} b5 {[%clk 00:02:13]}
{[%emt 00:00:03]} 34. Qh6+ {[%clk 00:01:30]} {[%emt 00:00:07]} Qg7 {[%clk
00:02:22]} {[%emt 00:00:02]} 35. Rd8+ {[%clk 00:01:38]} {[%emt 00:00:02]} Kf7
{[%clk 00:02:29]} {[%emt 00:00:03]} 36. Qd2 {[%clk 00:01:40]} {[%emt 00:00:08]}
Qf6 {[%clk 00:02:26]} {[%emt 00:00:13]} 37. Qh6 {[%clk 00:01:37]} {[%emt
00:00:13]} Qg7 {[%clk 00:02:35]} {[%emt 00:00:01]} 38. Qe3 {[%clk 00:01:40]}
{[%emt 00:00:06]} Qf6 {[%clk 00:02:40]} {[%emt 00:00:06]} 39. Kb1 {[%clk
00:01:08]} {[%emt 00:00:42]} e4 {[%clk 00:01:39]} {[%emt 00:01:11]} 40. Qb3+
{[%clk 00:00:56]} {[%emt 00:00:22]} Qe6 {[%clk 00:01:45]} {[%emt 00:00:04]} 41.
Qxe6+ {[%clk 00:00:41]} {[%emt 00:00:25]} Kxe6 {[%clk 00:01:54]} {[%emt
00:00:02]} 42. fxe4 {[%clk 00:00:49]} {[%emt 00:00:02]} Ke5 {[%clk 00:02:03]}
{[%emt 00:00:01]} 43. Kc1 {[%clk 00:00:53]} {[%emt 00:00:06]} Kxe4 {[%clk
00:02:11]} {[%emt 00:00:01]} 44. Kd2 {[%clk 00:01:01]} {[%emt 00:00:02]} Kf4
{[%clk 00:02:00]} {[%emt 00:00:21]} 45. Rd4+ {[%clk 00:01:02]} {[%emt
00:00:10]} Kf5 {[%clk 00:02:07]} {[%emt 00:00:03]} 46. Rd8 {[%clk 00:01:02]}
{[%emt 00:00:10]} 1/2-1/2

[Event "British Rapidplay Championship 2023"]
[Site "Mercure Bradford, Bankfield Hotel"]
[Date "2023.04.15"]
[Round "3.12"]
[White "Bramson, Mike"]
[Black "Mosnegutu, Klauss"]
[Result "0-1"]
[TimeControl "15 minutes plus 10 seconds per move"]
[WhiteElo "1864"]
[BlackElo "2229"]

1. e4 {[%clk 00:15:19]} c5 {[%clk 00:15:19]} {[%emt 00:00:02]} 2. Nf3 {[%clk
00:15:26]} {[%emt 00:00:02]} d6 {[%clk 00:15:28]} 3. Nc3 {[%clk 00:15:34]}
{[%emt 00:00:02]} a6 {[%clk 00:15:38]} {[%emt 00:00:01]} 4. a4 {[%clk
00:15:41]} {[%emt 00:00:03]} Nf6 {[%clk 00:15:46]} {[%emt 00:00:02]} 5. Bc4
{[%clk 00:15:49]} {[%emt 00:00:02]} Bg4 {[%clk 00:15:52]} {[%emt 00:00:04]} 6.
d3 {[%clk 00:15:57]} {[%emt 00:00:02]} e6 {[%clk 00:16:00]} {[%emt 00:00:02]} 7.
Be3 {[%clk 00:15:40]} {[%emt 00:00:26]} d5 {[%clk 00:16:09]} {[%emt 00:00:02]}
8. e5 {[%clk 00:15:26]} {[%emt 00:00:24]} Nfd7 {[%clk 00:16:17]} {[%emt
00:00:02]} 9. Bg5 {[%clk 00:15:32]} {[%emt 00:00:03]} Qa5 {[%clk 00:14:44]}
{[%emt 00:01:43]} 10. Bxd5 {[%clk 00:14:58]} {[%emt 00:00:44]} exd5 {[%clk
00:14:50]} {[%emt 00:00:04]} 11. O-O {[%clk 00:15:04]} {[%emt 00:00:02]} Be6
{[%clk 00:14:46]} {[%emt 00:00:15]} 12. d4 {[%clk 00:15:05]} {[%emt 00:00:09]}
Nc6 {[%clk 00:14:51]} {[%emt 00:00:06]} 13. Re1 {[%clk 00:15:06]} {[%emt
00:00:09]} cxd4 {[%clk 00:14:58]} {[%emt 00:00:03]} 14. Nxd4 {[%clk 00:15:11]}
{[%emt 00:00:05]} Nxd4 {[%clk 00:15:03]} {[%emt 00:00:05]} 15. Qxd4 {[%clk
00:15:19]} {[%emt 00:00:02]} Bc5 {[%clk 00:15:11]} {[%emt 00:00:02]} 16. Qh4
{[%clk 00:15:23]} {[%emt 00:00:05]} Qb6 {[%clk 00:14:39]} {[%emt 00:00:43]} 17.
Rad1 {[%clk 00:15:16]} {[%emt 00:00:16]} h6 {[%clk 00:14:23]} {[%emt 00:00:26]}
18. Re2 {[%clk 00:15:02]} {[%emt 00:00:24]} Nf8 {[%clk 00:12:10]} {[%emt
00:02:23]} 19. Be3 {[%clk 00:09:48]} {[%emt 00:05:25]} Bxe3 {[%clk 00:12:17]}
{[%emt 00:00:03]} 20. Rxe3 {[%clk 00:09:55]} {[%emt 00:00:02]} Ng6 {[%clk
00:11:52]} {[%emt 00:00:35]} 21. a5 {[%clk 00:09:29]} {[%emt 00:00:36]} Qxe3
{[%clk 00:15:10]} {[%emt 00:00:22]} 0-1

[Event "British Rapidplay Championship 2023"]
[Site "Mercure Bradford, Bankfield Hotel"]
[Date "2023.04.15"]
[Round "3.13"]
[White "Slinger, AJ (Tony)"]
[Black "Watson, Phil R"]
[Result "1/2-1/2"]
[TimeControl "15 minutes plus 10 seconds per move"]
[WhiteElo "1841"]
[BlackElo "2144"]

1. c4 {[%clk 00:15:19]} e5 {[%clk 00:15:19]} {[%emt 00:00:02]} 2. Nc3 {[%clk
00:15:27]} {[%emt 00:00:02]} Nc6 {[%clk 00:15:27]} {[%emt 00:00:01]} 3. Nf3
{[%clk 00:15:35]} {[%emt 00:00:02]} Nf6 {[%clk 00:15:36]} {[%emt 00:00:01]} 4.
e3 {[%clk 00:15:44]} Bb4 {[%clk 00:15:45]} {[%emt 00:00:02]} 5. Qc2 {[%clk
00:15:52]} {[%emt 00:00:01]} Bxc3 {[%clk 00:15:54]} {[%emt 00:00:02]} 6. bxc3
{[%clk 00:15:50]} {[%emt 00:00:12]} O-O {[%clk 00:15:42]} {[%emt 00:00:22]} 7.
e4 {[%clk 00:15:59]} b6 {[%clk 00:15:33]} {[%emt 00:00:20]} 8. g3 {[%clk
00:15:51]} {[%emt 00:00:18]} d6 {[%clk 00:15:27]} {[%emt 00:00:17]} 9. Bg2
{[%clk 00:15:58]} {[%emt 00:00:01]} Bb7 {[%clk 00:15:25]} {[%emt 00:00:12]} 10.
d3 {[%clk 00:15:48]} {[%emt 00:00:20]} Qd7 {[%clk 00:15:17]} {[%emt 00:00:19]}
11. O-O {[%clk 00:15:55]} {[%emt 00:00:02]} Kh8 {[%clk 00:15:09]} {[%emt
00:00:18]} 12. Nh4 {[%clk 00:15:36]} {[%emt 00:00:29]} Ne7 {[%clk 00:14:30]}
{[%emt 00:00:49]} 13. Qe2 {[%clk 00:13:52]} {[%emt 00:01:53]} Nfg8 {[%clk
00:13:28]} {[%emt 00:01:13]} 14. f4 {[%clk 00:13:22]} {[%emt 00:00:40]} exf4
{[%clk 00:11:06]} {[%emt 00:02:32]} 15. gxf4 {[%clk 00:13:21]} {[%emt
00:00:10]} f5 {[%clk 00:11:00]} {[%emt 00:00:16]} 16. e5 {[%clk 00:11:59]}
{[%emt 00:01:32]} Bxg2 {[%clk 00:11:01]} {[%emt 00:00:09]} 17. Kxg2 {[%clk
00:11:18]} {[%emt 00:00:51]} Rae8 {[%clk 00:09:57]} {[%emt 00:01:14]} 18. d4
{[%clk 00:10:59]} {[%emt 00:00:30]} d5 {[%clk 00:08:57]} {[%emt 00:01:10]} 19.
Nf3 {[%clk 00:10:42]} {[%emt 00:00:26]} dxc4 {[%clk 00:08:26]} {[%emt
00:00:41]} 20. Qxc4 {[%clk 00:09:48]} {[%emt 00:01:03]} c5 {[%clk 00:07:07]}
{[%emt 00:01:30]} 21. dxc5 {[%clk 00:08:47]} {[%emt 00:01:11]} Rc8 {[%clk
00:06:46]} {[%emt 00:00:31]} 22. Qd4 {[%clk 00:06:26]} {[%emt 00:02:31]} Qc6
{[%clk 00:05:57]} {[%emt 00:00:59]} 23. Qd6 {[%clk 00:05:31]} {[%emt 00:01:05]}
Rfd8 {[%clk 00:05:37]} {[%emt 00:00:30]} 24. Qxc6 {[%clk 00:05:37]} {[%emt
00:00:04]} Rxc6 {[%clk 00:05:45]} {[%emt 00:00:02]} 25. cxb6 {[%clk 00:05:38]}
{[%emt 00:00:09]} axb6 {[%clk 00:05:39]} {[%emt 00:00:16]} 26. Bd2 {[%clk
00:05:03]} {[%emt 00:00:44]} Rc4 {[%clk 00:03:34]} {[%emt 00:02:15]} 27. Kf2
{[%clk 00:02:59]} {[%emt 00:02:13]} Nd5 {[%clk 00:03:01]} {[%emt 00:00:44]} 28.
Ng5 {[%clk 00:00:42]} {[%emt 00:02:27]} Nh6 {[%clk 00:03:01]} {[%emt 00:00:10]}
29. Ne6 {[%clk 00:00:35]} {[%emt 00:00:17]} Re8 {[%clk 00:02:38]} {[%emt
00:00:33]} 30. Nd4 {[%clk 00:00:40]} {[%emt 00:00:05]} Nxc3 {[%clk 00:02:41]}
{[%emt 00:00:08]} 31. Bxc3 {[%clk 00:00:44]} {[%emt 00:00:05]} Rxc3 {[%clk
00:02:49]} {[%emt 00:00:02]} 32. Rac1 {[%clk 00:00:52]} {[%emt 00:00:02]} Ra3
{[%clk 00:02:13]} {[%emt 00:00:46]} 33. Rc2 {[%clk 00:00:59]} {[%emt 00:00:03]}
g6 {[%clk 00:01:54]} {[%emt 00:00:30]} 34. Rb1 {[%clk 00:01:07]} {[%emt
00:00:02]} Ng4+ {[%clk 00:01:49]} {[%emt 00:00:15]} 35. Kg1 {[%clk 00:01:13]}
{[%emt 00:00:03]} Ne3 {[%clk 00:01:47]} {[%emt 00:00:13]} 36. Re2 {[%clk
00:01:10]} {[%emt 00:00:13]} Nd5 {[%clk 00:01:53]} {[%emt 00:00:04]} 37. Rf2
{[%clk 00:01:13]} {[%emt 00:00:07]} Rea8 {[%clk 00:01:54]} {[%emt 00:00:09]} 38.
Rbb2 {[%clk 00:01:19]} {[%emt 00:00:04]} Rd3 {[%clk 00:01:08]} {[%emt
00:00:55]} 39. Ne6 {[%clk 00:01:06]} {[%emt 00:00:23]} Ra4 {[%clk 00:00:43]}
{[%emt 00:00:36]} 40. Rbc2 {[%clk 00:00:33]} {[%emt 00:00:43]} Rd1+ {[%clk
00:00:38]} {[%emt 00:00:14]} 41. Kg2 {[%clk 00:00:42]} Ne3+ {[%clk 00:00:47]}
{[%emt 00:00:02]} 42. Kg3 {[%clk 00:00:32]} {[%emt 00:00:19]} Nxc2 {[%clk
00:00:29]} {[%emt 00:00:28]} 43. Rxc2 {[%clk 00:00:40]} {[%emt 00:00:02]} Kg8
{[%clk 00:00:21]} {[%emt 00:00:18]} 44. Rc7 {[%clk 00:00:44]} {[%emt 00:00:07]}
Rd3+ {[%clk 00:00:20]} {[%emt 00:00:11]} 45. Kh4 {[%clk 00:00:46]} {[%emt
00:00:08]} Rxa2 {[%clk 00:00:28]} {[%emt 00:00:02]} 46. Kg5 {[%clk 00:00:50]}
{[%emt 00:00:06]} Ra8 {[%clk 00:00:31]} {[%emt 00:00:07]} 47. Kf6 {[%clk
00:00:37]} {[%emt 00:00:22]} Rh3 {[%clk 00:00:33]} {[%emt 00:00:08]} 48. Rg7+
{[%clk 00:00:45]} {[%emt 00:00:02]} Kh8 {[%clk 00:00:42]} {[%emt 00:00:02]} 49.
Rf7 {[%clk 00:00:46]} {[%emt 00:00:08]} Rxh2 {[%clk 00:00:23]} {[%emt
00:00:30]} 50. Ng5 {[%clk 00:00:52]} {[%emt 00:00:03]} h6 {[%clk 00:00:14]}
{[%emt 00:00:19]} 51. Rh7+ {[%clk 00:00:43]} {[%emt 00:00:18]} Kg8 {[%clk
00:00:24]} {[%emt 00:00:02]} 52. Rg7+ {[%clk 00:00:52]} {[%emt 00:00:01]} Kh8
{[%clk 00:00:18]} {[%emt 00:00:15]} 53. Rh7+ {[%clk 00:01:00]} {[%emt
00:00:01]} Kg8 {[%clk 00:00:27]} {[%emt 00:00:01]} 54. Rg7+ {[%clk 00:01:09]}
Kh8 {[%clk 00:00:24]} {[%emt 00:00:14]} 1/2-1/2

[Event "British Rapidplay Championship 2023"]
[Site "Mercure Bradford, Bankfield Hotel"]
[Date "2023.04.15"]
[Round "3.14"]
[White "Bak, Christopher"]
[Black "McCarthy, Damian M"]
[Result "0-1"]
[TimeControl "15 minutes plus 10 seconds per move"]
[WhiteElo "2116"]
[BlackElo "1860"]

1. c4 {[%clk 00:15:17]} {[%emt 00:00:03]} e5 {[%clk 00:15:16]} {[%emt
00:00:05]} 2. Nc3 {[%clk 00:15:25]} {[%emt 00:00:02]} Nf6 {[%clk 00:15:22]}
{[%emt 00:00:04]} 3. Nf3 {[%clk 00:15:33]} {[%emt 00:00:02]} Nc6 {[%clk
00:15:28]} {[%emt 00:00:04]} 4. e3 {[%clk 00:15:40]} {[%emt 00:00:02]} Bb4
{[%clk 00:15:30]} {[%emt 00:00:09]} 5. Qc2 {[%clk 00:15:47]} {[%emt 00:00:02]}
Bxc3 {[%clk 00:15:20]} {[%emt 00:00:20]} 6. Qxc3 {[%clk 00:15:53]} {[%emt
00:00:04]} e4 {[%clk 00:13:54]} {[%emt 00:01:37]} 7. Nd4 {[%clk 00:15:39]}
{[%emt 00:00:23]} O-O {[%clk 00:13:15]} {[%emt 00:00:49]} 8. Be2 {[%clk
00:15:44]} {[%emt 00:00:05]} d5 {[%clk 00:13:19]} {[%emt 00:00:07]} 9. O-O
{[%clk 00:15:40]} {[%emt 00:00:13]} Re8 {[%clk 00:11:58]} {[%emt 00:01:31]} 10.
f3 {[%clk 00:15:37]} {[%emt 00:00:14]} Ne5 {[%clk 00:11:41]} {[%emt 00:00:27]}
11. cxd5 {[%clk 00:14:53]} {[%emt 00:00:53]} Nxd5 {[%clk 00:11:39]} {[%emt
00:00:12]} 12. Qb3 {[%clk 00:14:51]} {[%emt 00:00:12]} exf3 {[%clk 00:11:18]}
{[%emt 00:00:31]} 13. gxf3 {[%clk 00:12:28]} {[%emt 00:02:34]} c5 {[%clk
00:10:14]} {[%emt 00:01:14]} 14. Nc2 {[%clk 00:11:46]} {[%emt 00:00:52]} Re6
{[%clk 00:08:38]} {[%emt 00:01:46]} 15. f4 {[%clk 00:10:14]} {[%emt 00:01:42]}
Rg6+ {[%clk 00:08:20]} {[%emt 00:00:27]} 16. Kh1 {[%clk 00:10:20]} {[%emt
00:00:03]} Bh3 {[%clk 00:06:31]} {[%emt 00:01:59]} 17. Rg1 {[%clk 00:06:45]}
{[%emt 00:03:46]} Ng4 {[%clk 00:04:25]} {[%emt 00:02:16]} 18. Bxg4 {[%clk
00:06:50]} {[%emt 00:00:05]} Bxg4 {[%clk 00:04:15]} {[%emt 00:00:21]} 19. Rg3
{[%clk 00:05:53]} {[%emt 00:01:06]} Nf6 {[%clk 00:03:24]} {[%emt 00:01:01]} 20.
d3 {[%clk 00:02:50]} {[%emt 00:03:13]} Nh5 {[%clk 00:03:16]} {[%emt 00:00:18]}
21. Kg2 {[%clk 00:02:58]} {[%emt 00:00:02]} Qh4 {[%clk 00:02:45]} {[%emt
00:00:41]} 22. Qxb7 {[%clk 00:01:59]} {[%emt 00:01:09]} Rf8 {[%clk 00:02:47]}
{[%emt 00:00:08]} 23. Ne1 {[%clk 00:02:02]} {[%emt 00:00:07]} Bh3+ {[%clk
00:02:07]} {[%emt 00:00:50]} 24. Kf2 {[%clk 00:02:05]} {[%emt 00:00:07]} Nxg3
{[%clk 00:02:01]} {[%emt 00:00:17]} 25. hxg3 {[%clk 00:02:13]} {[%emt
00:00:02]} Qxg3+ {[%clk 00:02:06]} {[%emt 00:00:05]} 26. Ke2 {[%clk 00:02:21]}
{[%emt 00:00:02]} Qh2+ {[%clk 00:01:15]} {[%emt 00:01:01]} 27. Kd1 {[%clk
00:02:19]} {[%emt 00:00:12]} Bg4+ {[%clk 00:01:03]} {[%emt 00:00:21]} 28. Nf3
{[%clk 00:02:27]} {[%emt 00:00:02]} Bxf3+ {[%clk 00:01:01]} {[%emt 00:00:11]}
29. Qxf3 {[%clk 00:02:34]} {[%emt 00:00:04]} Rg1+ {[%clk 00:01:09]} {[%emt
00:00:03]} 30. Qf1 {[%clk 00:02:42]} {[%emt 00:00:01]} Rxf1# {[%emt 00:00:28]}
0-1

[Event "British Rapidplay Championship 2023"]
[Site "Mercure Bradford, Bankfield Hotel"]
[Date "2023.04.15"]
[Round "3.15"]
[White "Coles, Steven F"]
[Black "Mokhber-Garcia, Sebastian"]
[Result "1-0"]
[TimeControl "15 minutes plus 10 seconds per move"]
[WhiteElo "1969"]
[BlackElo "1815"]

1. d4 {[%clk 00:15:17]} {[%emt 00:00:02]} Nf6 {[%clk 00:15:19]} {[%emt
00:00:02]} 2. Bg5 {[%clk 00:15:23]} {[%emt 00:00:04]} e6 {[%clk 00:14:48]}
{[%emt 00:00:42]} 3. e4 {[%clk 00:15:28]} {[%emt 00:00:04]} h6 {[%clk
00:14:55]} {[%emt 00:00:03]} 4. Bxf6 {[%clk 00:15:34]} {[%emt 00:00:02]} Qxf6
{[%clk 00:15:02]} {[%emt 00:00:04]} 5. c3 {[%clk 00:15:40]} {[%emt 00:00:06]}
Be7 {[%clk 00:15:00]} {[%emt 00:00:12]} 6. Bd3 {[%clk 00:15:42]} {[%emt
00:00:08]} e5 {[%clk 00:14:32]} {[%emt 00:00:38]} 7. Ne2 {[%clk 00:14:43]}
{[%emt 00:01:08]} exd4 {[%clk 00:14:14]} {[%emt 00:00:29]} 8. cxd4 {[%clk
00:14:38]} {[%emt 00:00:12]} Bb4+ {[%clk 00:14:14]} {[%emt 00:00:12]} 9. Nbc3
{[%clk 00:14:39]} {[%emt 00:00:09]} Nc6 {[%clk 00:14:09]} {[%emt 00:00:15]} 10.
e5 {[%clk 00:13:57]} {[%emt 00:00:52]} Qe7 {[%clk 00:14:11]} {[%emt 00:00:08]}
11. O-O {[%clk 00:13:50]} {[%emt 00:00:17]} O-O {[%clk 00:13:50]} {[%emt
00:00:31]} 12. Nd5 {[%clk 00:13:09]} {[%emt 00:00:50]} Qd8 {[%clk 00:13:51]}
{[%emt 00:00:10]} 13. Bc2 {[%clk 00:12:19]} {[%emt 00:01:00]} Be7 {[%clk
00:13:48]} {[%emt 00:00:12]} 14. Nef4 {[%clk 00:11:35]} {[%emt 00:00:55]} g6
{[%clk 00:11:58]} {[%emt 00:02:00]} 15. Qd3 {[%clk 00:11:04]} {[%emt 00:00:40]}
Kg7 {[%clk 00:11:02]} {[%emt 00:01:07]} 16. Nxg6 {[%clk 00:10:52]} {[%emt
00:00:22]} f5 {[%clk 00:10:37]} {[%emt 00:00:36]} 17. Nxf8 {[%clk 00:10:42]}
{[%emt 00:00:20]} Qxf8 {[%clk 00:10:32]} {[%emt 00:00:14]} 18. Nxc7 {[%clk
00:08:32]} {[%emt 00:02:20]} Rb8 {[%clk 00:10:38]} {[%emt 00:00:04]} 19. e6
{[%clk 00:07:43]} {[%emt 00:00:59]} dxe6 {[%clk 00:10:20]} {[%emt 00:00:28]} 20.
Rfe1 {[%clk 00:07:32]} {[%emt 00:00:21]} Bd6 {[%clk 00:09:48]} {[%emt
00:00:42]} 21. Nxe6+ {[%clk 00:07:26]} {[%emt 00:00:16]} Bxe6 {[%clk 00:09:54]}
{[%emt 00:00:03]} 22. Rxe6 {[%clk 00:07:34]} {[%emt 00:00:02]} Rd8 {[%clk
00:09:45]} {[%emt 00:00:19]} 23. d5 {[%clk 00:07:24]} {[%emt 00:00:21]} Ne7
{[%clk 00:09:13]} {[%emt 00:00:42]} 24. Kh1 {[%clk 00:06:22]} {[%emt 00:01:12]}
Ng6 {[%clk 00:08:31]} {[%emt 00:00:52]} 25. g3 {[%clk 00:05:58]} {[%emt
00:00:34]} h5 {[%clk 00:08:14]} {[%emt 00:00:28]} 26. Rae1 {[%clk 00:05:54]}
{[%emt 00:00:14]} h4 {[%clk 00:08:01]} {[%emt 00:00:22]} 27. Qxf5 {[%clk
00:05:33]} {[%emt 00:00:31]} Qxf5 {[%clk 00:07:45]} {[%emt 00:00:25]} 28. Bxf5
{[%clk 00:05:41]} {[%emt 00:00:03]} Nf8 {[%clk 00:07:44]} {[%emt 00:00:12]} 29.
Re8 {[%clk 00:05:40]} {[%emt 00:00:11]} Rxe8 {[%clk 00:07:42]} {[%emt
00:00:11]} 30. Rxe8 {[%clk 00:05:48]} {[%emt 00:00:02]} hxg3 {[%clk 00:07:42]}
{[%emt 00:00:11]} 31. hxg3 {[%clk 00:05:53]} {[%emt 00:00:05]} Kf6 {[%clk
00:07:48]} {[%emt 00:00:03]} 32. g4 {[%clk 00:05:45]} {[%emt 00:00:18]} Bc5
{[%clk 00:07:25]} {[%emt 00:00:33]} 33. Kg2 {[%clk 00:05:49]} {[%emt 00:00:06]}
Kf7 {[%clk 00:07:18]} {[%emt 00:00:17]} 34. Rb8 {[%clk 00:05:46]} {[%emt
00:00:13]} b6 {[%clk 00:07:23]} {[%emt 00:00:04]} 35. Rb7+ {[%clk 00:05:48]}
{[%emt 00:00:08]} Kf6 {[%clk 00:07:31]} {[%emt 00:00:02]} 36. Rxa7 {[%clk
00:05:48]} {[%emt 00:00:12]} Ke5 {[%clk 00:07:36]} {[%emt 00:00:04]} 37. a3
{[%clk 00:05:16]} {[%emt 00:00:42]} Kxd5 {[%clk 00:07:38]} {[%emt 00:00:07]} 38.
f4 {[%clk 00:05:16]} {[%emt 00:00:11]} b5 {[%clk 00:07:38]} {[%emt 00:00:10]}
39. Ra5 {[%clk 00:05:18]} {[%emt 00:00:09]} Kc4 {[%clk 00:07:40]} {[%emt
00:00:08]} 40. g5 {[%clk 00:05:17]} {[%emt 00:00:10]} Bd6 {[%clk 00:07:33]}
{[%emt 00:00:16]} 41. Kf3 {[%clk 00:05:18]} {[%emt 00:00:10]} Bc7 {[%clk
00:07:33]} {[%emt 00:00:10]} 42. Ra8 {[%clk 00:05:19]} {[%emt 00:00:08]} Bd6
{[%clk 00:07:40]} {[%emt 00:00:04]} 43. g6 {[%clk 00:05:07]} {[%emt 00:00:22]}
Nxg6 {[%clk 00:07:47]} {[%emt 00:00:03]} 44. Bxg6 {[%clk 00:05:15]} {[%emt
00:00:02]} Kb3 {[%clk 00:07:51]} {[%emt 00:00:06]} 45. Ra5 {[%clk 00:05:13]}
{[%emt 00:00:12]} Kc4 {[%clk 00:07:52]} {[%emt 00:00:10]} 46. Bf7+ {[%clk
00:05:12]} {[%emt 00:00:10]} Kc5 {[%clk 00:07:57]} {[%emt 00:00:05]} 47. Be8
{[%clk 00:05:13]} {[%emt 00:00:08]} Bc7 {[%clk 00:08:02]} {[%emt 00:00:06]} 48.
Rxb5+ {[%clk 00:05:21]} {[%emt 00:00:03]} Kc4 {[%clk 00:08:10]} {[%emt
00:00:02]} 49. Rb7 {[%clk 00:05:20]} {[%emt 00:00:10]} Bd6 {[%clk 00:08:17]}
{[%emt 00:00:03]} 50. a4 {[%clk 00:05:19]} {[%emt 00:00:10]} Bf8 {[%clk
00:08:18]} {[%emt 00:00:09]} 51. a5 {[%clk 00:05:23]} {[%emt 00:00:07]} Kd5
{[%clk 00:08:26]} {[%emt 00:00:02]} 52. a6 {[%clk 00:05:29]} {[%emt 00:00:05]}
Bc5 {[%clk 00:08:32]} {[%emt 00:00:03]} 1-0